fUSD/lending_fUSD_20250923
["ID","MTS","AMOUNT","RATE_DAILY","PERIOD"]
[387249709,1758664411878,-400.0,0.00027945,3]
[387249710,1758664411888,-400.0,0.00027945,3]
[387249711,1758664411898,-3330.98,0.00027945,3]
[387249712,1758664411908,-425.15,0.00027945,3]
[387249713,1758664411918,-487.18,0.00027945,3]
[387249714,1758664411929,-400.0,0.00027945,3]
[387249715,1758664411939,-605.39,0.00027945,3]
[387249716,1758664411948,-425.07,0.00027945,3]
[387249717,1758664411958,-630.04,0.00027945,3]
[387249718,1758664411967,-507.22,0.00027945,3]
[387249719,1758664411978,-1822.56,0.00027945,3]
[387249720,1758664411988,-13418.14,0.00027945,3]
[387249721,1758664411997,-1189.77,0.00027945,3]
[387249722,1758664412007,-908.29,0.00027945,3]
[387249723,1758664412016,-752.17,0.00027945,3]
[387249724,1758664412026,-2046.35,0.00027945,3]
[387249725,1758664412036,-472.22,0.00027945,3]
[387249726,1758664412046,-400.0,0.00027945,3]
[387249727,1758664412056,-2819.02,0.00027945,3]
[387249728,1758664412065,-3599.9999991,0.00028,29]
[387249729,1758664412075,-281.69,0.00028,2]
[387249730,1758664412085,-8086.72031485,0.00028,2]
[387249731,1758664412094,-500.0,0.00028,2]
[387249732,1758664412103,-161.7344063,0.00028,2]
[387249733,1758664412113,-516.32,0.00028,7]
[387249734,1758664412122,-645.25,0.00028,7]
[387249735,1758664412131,-227.42,0.00028,7]
[387249736,1758664412141,-781.67,0.00028,7]
[387249737,1758664412150,-549.51,0.00028,7]
[387249738,1758664412159,-364.38,0.00028,7]
[387249739,1758664412169,-1068.77,0.00028,7]
[387249740,1758664412178,-1233.0,0.00028024,2]
[387249741,1758664412187,-434.0,0.00028024,2]
[387249742,1758664412196,-749.6359021,0.00028069,2]
[387249743,1758664412205,-1219.72,0.00028087,3]
[387249744,1758664412214,-400.0,0.00028087,3]
[387249745,1758664412223,-719.25,0.00028169,7]
[387249746,1758664412233,-947.43,0.00028177,3]
[387249747,1758664412242,-403.15,0.00028219,3]
[387249748,1758664412251,-1219.54,0.00028219,3]
[387249749,1758664412261,-422.15,0.00028219,3]
[387249750,1758664412270,-400.0,0.00028219,3]
[387249751,1758664412279,-722.3,0.00028219,3]
[387249752,1758664412288,-400.0,0.00028219,3]
[387249753,1758664412297,-425.13,0.00028219,3]
[387249754,1758664412307,-400.0,0.00028219,3]
[387249755,1758664412316,-463.61,0.00028219,3]
[387249756,1758664412325,-400.0,0.00028219,3]
[387249757,1758664412334,-400.81,0.00028219,3]
[387249758,1758664412343,-606.67,0.00028219,3]
[387249759,1758664412353,-558.51,0.00028219,3]
[387249760,1758664412362,-400.0,0.00028219,3]
[387249761,1758664412371,-517.79,0.00028219,3]
[387249762,1758664412381,-410.1,0.00028219,3]
[387249763,1758664412391,-513.24,0.00028219,3]
[387249764,1758664412400,-864.38,0.00028219,3]
[387249765,1758664412412,-400.0,0.00028219,3]
[387249766,1758664412422,-400.0,0.00028219,3]
[387249767,1758664412432,-400.0,0.00028219,3]
[387249768,1758664412442,-400.0,0.00028219,3]
[387249769,1758664412453,-400.0,0.00028219,3]
[387249770,1758664412463,-400.0,0.00028219,3]
[387249771,1758664412472,-499.32,0.00028219,3]
[387249772,1758664412483,-400.0,0.00028219,3]
[387249773,1758664412494,-400.0,0.00028219,3]
[387249774,1758664412504,-701.54,0.00028219,3]
[387249775,1758664412513,-761.54,0.00028219,3]
[387249776,1758664412524,-448.15,0.00028219,3]
[387249777,1758664412533,-448.15,0.00028219,3]
[387249778,1758664412543,-550.19,0.00028219,3]
[387249779,1758664412553,-527.27,0.00028219,3]
[387249780,1758664412563,-400.0,0.00028219,3]
[387249781,1758664412572,-400.0,0.00028219,3]
[387249782,1758664412582,-400.0,0.00028219,3]
[387249783,1758664412592,-433.43,0.00028219,3]
[387249784,1758664412601,-400.0,0.00028219,3]
[387249785,1758664412611,-1431.46,0.00028219,3]
[387249786,1758664412621,-400.0,0.00028219,3]
[387249787,1758664412630,-888.36,0.00028219,3]
[387249788,1758664412640,-400.0,0.00028219,3]
[387249789,1758664412649,-500.78,0.00028219,3]
[387249790,1758664412659,-400.0,0.00028219,3]
[387249791,1758664412668,-400.0,0.00028219,3]
[387249792,1758664412678,-415.37,0.00028219,3]
[387249793,1758664412687,-400.0,0.00028219,3]
[387249794,1758664412698,-851.65,0.00028219,3]
[387249795,1758664412707,-469.22,0.00028219,3]
[387249796,1758664412717,-514.2,0.00028219,3]
[387249797,1758664412727,-696.09,0.00028219,3]
[387249798,1758664412737,-942.3,0.00028219,3]
[387249799,1758664412746,-401.11,0.00028219,3]
[387249800,1758664412756,-401.11,0.00028219,3]
[387249801,1758664412765,-426.89,0.00028219,3]
[387249802,1758664412775,-400.0,0.00028219,3]
[387249803,1758664412785,-483.66,0.00028219,3]
[387249804,1758664412795,-700.73,0.00028219,3]
[387249805,1758664412804,-1218.15,0.00028219,3]
[387249806,1758664412814,-432.38,0.00028219,3]
[387249807,1758664412824,-400.0,0.00028219,3]
[387249808,1758664412833,-413.32,0.00028219,3]
[387249809,1758664412843,-600.39,0.00028219,3]
[387249810,1758664412853,-400.0,0.00028219,3]
[387249811,1758664412862,-525.79,0.00028219,3]
[387249812,1758664412872,-400.0,0.00028219,3]
[387249813,1758664412881,-585.89,0.00028219,3]
[387249814,1758664412891,-400.0,0.00028219,3]
[387249815,1758664412900,-1162.35,0.00028219,3]
[387249816,1758664412910,-869.19,0.00028219,3]
[387249817,1758664412920,-400.0,0.00028219,3]
[387249818,1758664412929,-853.3,0.00028219,3]
[387249819,1758664412939,-400.0,0.00028219,3]
[387249820,1758664412949,-400.0,0.00028219,3]
[387249821,1758664412959,-684.3,0.00028219,3]
[387249822,1758664412969,-433.77,0.00028219,3]
[387249823,1758664412980,-400.0,0.00028219,3]
[387249824,1758664412991,-451.05,0.00028219,3]
[387249825,1758664413002,-1130.1,0.00028219,3]
[387249826,1758664413012,-1034.82,0.00028219,3]
[387249827,1758664413022,-414.11,0.00028219,3]
[387249828,1758664413032,-400.0,0.00028219,3]
[387249829,1758664413042,-400.0,0.00028219,3]
[387249830,1758664413053,-568.34,0.00028219,3]
[387249831,1758664413063,-497.27,0.00028219,3]
[387249832,1758664413072,-400.0,0.00028219,3]
[387249833,1758664413082,-483.14,0.00028219,3]
[387249834,1758664413092,-400.0,0.00028219,3]
[387249835,1758664413101,-400.0,0.00028219,3]
[387249836,1758664413111,-963.02,0.00028219,3]
[387249837,1758664413120,-442.92,0.00028219,3]
[387249838,1758664413130,-400.0,0.00028219,3]
[387249839,1758664413139,-400.0,0.00028219,3]
[387249840,1758664413149,-419.2,0.00028219,3]
[387249841,1758664413159,-495.44,0.00028219,3]
[387249842,1758664413168,-1113.1,0.00028219,3]
[387249843,1758664413178,-564.87,0.00028219,3]
[387249844,1758664413187,-400.0,0.00028219,3]
[387249845,1758664413197,-232.231453,0.00028219,3]
[387249846,1758664413206,-442.1,0.00028219,3]
[387249847,1758664413215,-612.62,0.00028219,3]
[387249848,1758664413225,-544.44,0.00028219,3]
[387249849,1758664413234,-553.48,0.00028219,3]
[387249850,1758664413244,-811.92,0.00028219,3]
[387249851,1758664413254,-866.52,0.00028219,3]
[387249852,1758664413264,-271.56304138,0.00028219,3]
[387249853,1758664413274,-400.0,0.00028219,3]
[387249854,1758664413283,-1271.99,0.00028219,3]
[387249855,1758664413293,-555.94,0.00028219,3]
[387249856,1758664413303,-516.66,0.00028219,3]
[387249857,1758664413312,-443.34,0.00028219,3]
[387249858,1758664413322,-460.81,0.00028219,3]
[387249859,1758664413331,-400.0,0.00028219,3]
[387249860,1758664413341,-502.53,0.00028219,3]
[387249861,1758664413350,-505.37,0.00028219,3]
[387249862,1758664413359,-542.19,0.00028219,3]
[387249863,1758664413369,-688.7,0.00028219,3]
[387249864,1758664413378,-1015.44,0.00028219,3]
[387249865,1758664413388,-1292.63,0.00028219,3]
[387249866,1758664413397,-1611.73,0.00028219,3]
[387249867,1758664413408,-637.7,0.00028219,3]
[387249868,1758664413420,-1000.0,0.00028219,3]
[387249869,1758664413430,-660.83,0.00028219,3]
[387249870,1758664413439,-549.84,0.00028219,3]
[387249871,1758664413451,-1262.83,0.00028219,3]
[387249872,1758664413461,-500.0,0.00028219,2]
[387249873,1758664413471,-400.0,0.00028219,3]
[387249874,1758664413481,-511.14,0.00028219,3]
[387249875,1758664413492,-1072.23,0.00028219,3]
[387249876,1758664413502,-435.66,0.00028219,3]
[387249877,1758664413511,-400.0,0.00028219,3]
[387249878,1758664413521,-446.42,0.00028219,3]
[387249879,1758664413531,-956.24,0.00028219,3]
[387249880,1758664413540,-804.81,0.00028219,3]
[387249881,1758664413550,-493.33,0.00028219,3]
[387249882,1758664413559,-400.0,0.00028219,3]
[387249883,1758664413569,-400.0,0.00028219,3]
[387249884,1758664413579,-400.0,0.00028219,3]
[387249885,1758664413589,-425.12,0.00028219,3]
[387249886,1758664413599,-400.0,0.00028219,3]
[387249887,1758664413609,-536.14,0.00028219,3]
[387249888,1758664413619,-400.0,0.00028219,3]
[387249889,1758664413629,-647.53,0.00028219,3]
[387249890,1758664413638,-1446.35,0.00028219,3]
[387249891,1758664413648,-400.0,0.00028219,3]
[387249892,1758664413658,-400.0,0.00028219,3]
[387249893,1758664413667,-712.76,0.00028219,3]
[387249894,1758664413677,-400.0,0.00028219,3]
[387249895,1758664413686,-400.0,0.00028219,3]
[387249896,1758664413696,-742.51,0.00028219,3]
[387249897,1758664414051,-400.0,0.00028219,3]
[387249898,1758664414062,-400.0,0.00028219,3]
[387249899,1758664414072,-609.25,0.00028219,3]
[387249900,1758664414082,-1004.12,0.00028219,3]
[387249901,1758664414093,-400.0,0.00028219,3]
[387249902,1758664414103,-1267.73,0.00028219,3]
[387249903,1758664414113,-400.0,0.00028219,3]
[387249904,1758664414123,-1089.2,0.00028219,3]
[387249905,1758664414134,-936.94,0.00028219,3]
[387249906,1758664414144,-400.0,0.00028219,3]
[387249907,1758664414155,-400.0,0.00028219,3]
[387249908,1758664414164,-628.73,0.00028219,3]
[387249909,1758664414174,-792.8,0.00028219,3]
[387249910,1758664414184,-718.2,0.00028219,3]
[387249911,1758664414194,-771.65,0.00028219,3]
[387249912,1758664414204,-735.99,0.00028219,3]
[387249913,1758664414214,-735.82,0.00028219,3]
[387249914,1758664414225,-724.09,0.00028219,3]
[387249915,1758664414235,-400.0,0.00028219,3]
[387249916,1758664414246,-724.51,0.00028219,3]
[387249917,1758664414256,-590.38,0.00028219,3]
[387249918,1758664414266,-704.47,0.00028219,3]
[387249919,1758664414275,-597.65,0.00028219,3]
[387249920,1758664414285,-644.02,0.00028219,3]
[387249921,1758664414295,-490.6,0.00028219,3]
[387249922,1758664414305,-544.45,0.00028219,3]
[387249923,1758664414315,-1124.92,0.00028219,3]
[387249924,1758664414325,-400.98,0.00028219,3]
[387249925,1758664414335,-1607.1,0.00028219,3]
[387249926,1758664414345,-643.25,0.00028219,3]
[387249927,1758664414354,-702.26,0.00028219,3]
[387249928,1758664414364,-623.69,0.00028219,3]
[387249929,1758664414373,-400.0,0.00028219,3]
[387249930,1758664414383,-1080.61,0.00028219,3]
[387249931,1758664414392,-422.24,0.00028219,3]
[387249932,1758664414402,-417.7,0.00028219,3]
[387249933,1758664414415,-909.48,0.00028219,3]
[387249934,1758664414425,-400.0,0.00028219,3]
[387249935,1758664414435,-515.95,0.00028219,3]
[387249936,1758664414444,-400.0,0.00028219,3]
[387249937,1758664414455,-419.15,0.00028219,3]
[387249938,1758664414465,-421.32,0.00028219,3]
[387249939,1758664414475,-1535.1,0.00028219,3]
[387249940,1758664414486,-610.62,0.00028219,3]
[387249941,1758664414496,-400.0,0.00028219,3]
[387249942,1758664414506,-788.82,0.00028219,3]
[387249943,1758664414516,-501.25,0.00028219,3]
[387249944,1758664414525,-400.0,0.00028219,3]
[387249945,1758664414535,-400.0,0.00028219,3]
[387249946,1758664414545,-400.0,0.00028219,3]
[387249947,1758664414555,-400.0,0.00028219,3]
[387249948,1758664414565,-467.58,0.00028219,3]
[387249949,1758664414575,-614.35,0.00028219,3]
[387249950,1758664414584,-387.17,0.00028219,3]
[387249951,1758664414594,-686.69,0.00028219,3]
[387249952,1758664414604,-400.0,0.00028219,3]
[387249953,1758664414614,-1284.73,0.00028219,3]
[387249954,1758664414629,-642.36,0.00028219,3]
[387249955,1758664414639,-400.0,0.00028219,3]
[387249956,1758664414649,-560.54,0.00028219,3]
[387249957,1758664414658,-1073.37,0.00028219,3]
[387249958,1758664414668,-753.1,0.00028219,3]
[387249959,1758664414678,-400.0,0.00028219,3]
[387249960,1758664414688,-545.97,0.00028219,3]
[387249961,1758664414698,-400.0,0.00028219,3]
[387249962,1758664414708,-400.0,0.00028219,3]
[387249963,1758664414717,-580.05,0.00028219,3]
[387249964,1758664414727,-1196.06,0.00028219,3]
[387249965,1758664414736,-779.4,0.00028219,3]
[387249966,1758664414745,-1387.31,0.00028219,3]
[387249967,1758664414755,-526.44,0.00028219,3]
[387249968,1758664414765,-914.9,0.00028219,3]
[387249969,1758664414775,-400.0,0.00028219,3]
[387249970,1758664414785,-751.05,0.00028219,3]
[387249971,1758664414795,-10481.21,0.00028219,3]
[387249972,1758664414805,-400.0,0.00028219,3]
[387249973,1758664414815,-585.69,0.00028219,3]
[387249974,1758664414824,-400.0,0.00028219,3]
[387249975,1758664414834,-1984.04,0.00028219,3]
[387249976,1758664414844,-1075.59,0.00028219,3]
[387249977,1758664414854,-1243.9,0.00028219,3]
[387249978,1758664414863,-2675.56,0.00028219,3]
[387249979,1758664414873,-1687.56,0.00028219,3]
[387249980,1758664414883,-603.56,0.00028219,3]
[387249981,1758664414893,-400.0,0.00028219,3]
[387249982,1758664414902,-613.2,0.00028219,3]
[387249983,1758664414913,-1380.17,0.00028219,3]
[387249984,1758664414923,-400.0,0.00028219,3]
[387249985,1758664414933,-400.0,0.00028219,3]
[387249986,1758664414943,-637.31,0.00028219,3]
[387249987,1758664414952,-536.31,0.00028219,3]
[387249988,1758664414962,-1960.16,0.00028219,3]
[387249989,1758664414972,-653.4,0.00028219,3]
[387249990,1758664414981,-400.0,0.00028219,3]
[387249991,1758664414992,-400.0,0.00028219,3]
[387249992,1758664415001,-1811.83,0.00028219,3]
[387249993,1758664415011,-400.0,0.00028219,3]
[387249994,1758664415021,-485.31,0.00028219,3]
[387249995,1758664415031,-609.4,0.00028219,3]
[387249996,1758664415040,-3596.07,0.00028219,3]
[387249997,1758664415050,-1777.36,0.00028219,3]
[387249998,1758664415059,-955.0,0.00028219,3]
[387249999,1758664415069,-1530.13,0.00028219,3]
[387250000,1758664415079,-400.0,0.00028219,3]
[387250001,1758664415089,-1065.12,0.00028219,3]
[387250002,1758664415098,-400.0,0.00028219,3]
[387250003,1758664415108,-624.46,0.00028219,3]
[387250004,1758664415118,-668.62,0.00028219,3]
[387250005,1758664415128,-400.0,0.00028219,3]
[387250006,1758664415138,-766.88,0.00028219,3]
[387250007,1758664415150,-488.82,0.00028219,3]
[387250008,1758664415166,-400.0,0.00028219,3]
[387250009,1758664415176,-1866.98,0.00028219,3]
[387250010,1758664415186,-674.88,0.00028219,3]
[387250011,1758664415196,-507.6,0.00028219,3]
[387250012,1758664415206,-2251.93,0.00028219,3]
[387250013,1758664415215,-1430.39,0.00028219,3]
[387250014,1758664415225,-1005.24,0.00028219,3]
[387250015,1758664415235,-340.2573666,0.00028219,3]
[387250016,1758664415245,-706.55,0.00028219,3]
[387250017,1758664415255,-400.0,0.00028219,3]
[387250018,1758664415265,-471.06,0.00028219,3]
[387250019,1758664415275,-440.49,0.00028219,3]
[387250020,1758664415285,-1632.87,0.00028219,3]
[387250021,1758664415295,-2172.06,0.00028219,3]
[387250022,1758664415304,-1577.53,0.00028219,3]
[387250023,1758664415314,-573.43,0.00028219,3]
[387250024,1758664415324,-1762.21,0.00028219,3]
[387250025,1758664415333,-2598.87,0.00028219,3]
[387250026,1758664415343,-2106.48,0.00028219,3]
[387250027,1758664415352,-400.0,0.00028219,3]
[387250028,1758664415362,-2137.16,0.00028219,3]
[387250029,1758664415372,-1633.99,0.00028219,3]
[387250030,1758664415382,-665.33,0.00028219,3]
[387250031,1758664415392,-400.0,0.00028219,3]
[387250032,1758664415401,-507.04,0.00028219,3]
[387250033,1758664415414,-652.14,0.00028219,3]
[387250034,1758664415424,-441.78,0.00028219,3]
[387250035,1758664415434,-2272.09,0.00028219,3]
[387250036,1758664415443,-2095.57,0.00028219,3]
[387250037,1758664415455,-2047.84,0.00028219,3]
[387250038,1758664415464,-425.92,0.00028219,3]
[387250039,1758664415475,-782.31,0.00028219,3]
[387250040,1758664415485,-1845.88,0.00028219,3]
[387250041,1758664415495,-1531.58,0.00028219,3]
[387250042,1758664415505,-1188.08,0.00028219,3]
[387250043,1758664415516,-1490.46,0.00028219,3]
[387250044,1758664415525,-2033.65,0.00028219,3]
[387250045,1758664415535,-2177.65,0.00028219,3]
[387250046,1758664415545,-2728.22,0.00028219,3]
[387250047,1758664415555,-400.0,0.00028219,3]
[387250048,1758664415564,-457.97,0.00028219,3]
[387250049,1758664415574,-400.0,0.00028219,3]
[387250050,1758664415583,-1405.11,0.00028219,3]
[387250051,1758664415593,-680.61,0.00028219,3]
[387250052,1758664415603,-1113.08,0.00028219,3]
[387250053,1758664415613,-1415.66,0.00028219,3]
[387250054,1758664415623,-1312.62,0.00028219,3]
[387250055,1758664415632,-1698.64,0.00028219,3]
[387250056,1758664415642,-769.12,0.00028219,3]
[387250057,1758664415651,-1079.65,0.00028219,3]
[387250058,1758664415660,-400.0,0.00028219,3]
[387250059,1758664415670,-916.94,0.00028219,3]
[387250060,1758664415680,-2186.72,0.00028219,3]
[387250061,1758664415690,-546.81,0.00028219,3]
[387250062,1758664415700,-485.45,0.00028219,3]
[387250063,1758664415710,-952.65,0.00028219,3]
[387250064,1758664415720,-643.52,0.00028219,3]
[387250065,1758664415731,-432.19662446,0.00028219,3]
[387250066,1758664415743,-1510.65,0.00028219,3]
[387250067,1758664415753,-1538.99,0.00028219,3]
[387250068,1758664415763,-400.0,0.00028219,3]
[387250069,1758664415773,-400.0,0.00028219,3]
[387250070,1758664415783,-767.66,0.00028219,3]
[387250071,1758664415793,-1183.46,0.00028219,3]
[387250072,1758664415804,-1025.71,0.00028219,3]
[387250073,1758664415814,-1292.75,0.00028219,3]
[387250074,1758664415823,-1576.62,0.00028219,3]
[387250075,1758664415833,-589.78,0.00028219,3]
[387250076,1758664415843,-263.80505706,0.00028219,3]
[387250077,1758664415852,-2168.52,0.00028219,3]
[387250078,1758664415862,-400.0,0.00028219,3]
[387250079,1758664415871,-1248.87,0.00028219,3]
[387250080,1758664415880,-1438.1,0.00028219,3]
[387250081,1758664415889,-801.34,0.00028219,3]
[387250082,1758664415899,-400.0,0.00028219,3]
[387250083,1758664415909,-1989.17,0.00028219,3]
[387250084,1758664415920,-1355.06,0.00028219,3]
[387250085,1758664415931,-1742.92,0.00028219,3]
[387250086,1758664415942,-1035.45,0.00028219,3]
[387250087,1758664415953,-466.56,0.00028219,3]
[387250088,1758664415963,-191.6215132,0.00028219,3]
[387250089,1758664415973,-1515.98,0.00028219,3]
[387250090,1758664415983,-1785.83,0.00028219,3]
[387250091,1758664415992,-635.55,0.00028219,3]
[387250092,1758664416001,-400.0,0.00028219,3]
[387250093,1758664416011,-835.56,0.00028219,3]
[387250094,1758664416020,-1984.29,0.00028219,3]
[387250095,1758664416029,-1716.89,0.00028219,3]
[387250096,1758664416039,-786.93,0.00028219,3]
[387250097,1758664416050,-645.64,0.00028219,3]
[387250098,1758664416059,-400.0,0.00028219,3]
[387250099,1758664416071,-1514.01,0.00028219,3]
[387250100,1758664416082,-2059.55,0.00028219,3]
[387250101,1758664416094,-2306.45,0.00028219,3]
[387250102,1758664416104,-400.0,0.00028219,3]
[387250103,1758664416113,-1545.45,0.00028219,3]
[387250104,1758664416122,-400.0,0.00028219,3]
[387250105,1758664416132,-2095.63,0.00028219,3]
[387250106,1758664416141,-400.0,0.00028219,3]
[387250107,1758664416151,-1430.02,0.00028219,3]
[387250108,1758664416160,-400.0,0.00028219,3]
[387250109,1758664416169,-909.31,0.00028219,3]
[387250110,1758664416183,-400.0,0.00028219,3]
[387250111,1758664416195,-1827.73,0.00028219,3]
[387250112,1758664416205,-400.0,0.00028219,3]
[387250113,1758664416214,-690.64,0.00028219,3]
[387250114,1758664416223,-2101.8,0.00028219,3]
[387250115,1758664416233,-966.9,0.00028219,3]
[387250116,1758664416243,-655.71,0.00028219,3]
[387250117,1758664416252,-400.0,0.00028219,3]
[387250118,1758664416261,-1470.41,0.00028219,3]
[387250119,1758664416271,-603.72,0.00028219,3]
[387250120,1758664416280,-5585.99,0.00028219,3]
[387250121,1758664416289,-400.0,0.00028219,3]
[387250122,1758664416299,-400.0,0.00028219,3]
[387250123,1758664416308,-1883.8,0.00028219,3]
[387250124,1758664416317,-1867.36,0.00028219,3]
[387250125,1758664416327,-1963.55,0.00028219,3]
[387250126,1758664416336,-614.58,0.00028219,3]
[387250127,1758664416346,-952.78,0.00028219,3]
[387250128,1758664416356,-400.0,0.00028219,3]
[387250129,1758664416366,-400.0,0.00028219,3]
[387250130,1758664416375,-1560.6,0.00028219,3]
[387250131,1758664416384,-1953.23,0.00028219,3]
[387250132,1758664416393,-1674.22,0.00028219,3]
[387250133,1758664416402,-492.65,0.00028219,3]
[387250134,1758664416416,-924.37,0.00028219,3]
[387250135,1758664416425,-1508.32,0.00028219,3]
[387250136,1758664416434,-1865.08,0.00028219,3]
[387250137,1758664416444,-1262.69,0.00028219,3]
[387250138,1758664416455,-400.0,0.00028219,3]
[387250139,1758664416465,-1344.24,0.00028219,3]
[387250140,1758664416475,-1502.94,0.00028219,3]
[387250141,1758664416486,-1473.52,0.00028219,3]
[387250142,1758664416631,-957.08,0.00028219,3]
[387250143,1758664416641,-528.66,0.00028219,3]
[387250144,1758664416650,-552.31,0.00028219,3]
[387250145,1758664416660,-2161.43,0.00028219,3]
[387250146,1758664416669,-2128.27,0.00028219,3]
[387250147,1758664416679,-943.67,0.00028219,3]
[387250148,1758664416689,-698.14,0.00028219,3]
[387250149,1758664416698,-956.83,0.00028219,3]
[387250150,1758664416707,-400.0,0.00028219,3]
[387250151,1758664416717,-1587.02,0.00028219,3]
[387250152,1758664416726,-428.71,0.00028219,3]
[387250153,1758664416735,-7304.35,0.00028219,3]
[387250154,1758664416744,-1021.78,0.00028219,3]
[387250155,1758664416753,-1854.69,0.00028219,3]
[387250156,1758664416763,-533.26,0.00028219,3]
[387250157,1758664416772,-400.0,0.00028219,3]
[387250158,1758664416781,-675.91,0.00028219,3]
[387250159,1758664416791,-1334.3,0.00028219,3]
[387250160,1758664416800,-447.62,0.00028219,3]
[387250161,1758664416809,-803.81,0.00028219,3]
[387250162,1758664416818,-400.0,0.00028219,3]
[387250163,1758664416828,-2319.15,0.00028219,3]
[387250164,1758664416837,-400.0,0.00028219,3]
[387250165,1758664416847,-1143.73,0.00028219,3]
[387250166,1758664416856,-400.0,0.00028219,3]
[387250167,1758664416865,-1693.96,0.00028219,3]
[387250168,1758664416874,-808.53,0.00028219,3]
[387250169,1758664416884,-1798.02,0.00028219,3]
[387250170,1758664416893,-400.0,0.00028219,3]
[387250171,1758664416903,-400.0,0.00028219,3]
[387250172,1758664416912,-1265.14,0.00028219,3]
[387250173,1758664416921,-493.9,0.00028219,3]
[387250174,1758664416931,-528.22,0.00028219,3]
[387250175,1758664416940,-1501.23,0.00028219,3]
[387250176,1758664416950,-400.0,0.00028219,3]
[387250177,1758664416960,-480.24,0.00028219,3]
[387250178,1758664416969,-400.0,0.00028219,3]
[387250179,1758664416979,-1303.69,0.00028219,3]
[387250180,1758664416988,-400.0,0.00028219,3]
[387250181,1758664416998,-810.26,0.00028219,3]
[387250182,1758664417007,-1157.48,0.00028219,3]
[387250183,1758664417017,-676.36,0.00028219,3]
[387250184,1758664417026,-923.87,0.00028219,3]
[387250185,1758664417035,-865.69,0.00028219,3]
[387250186,1758664417044,-1229.06,0.00028219,3]
[387250187,1758664417054,-645.83,0.00028219,3]
[387250188,1758664417064,-1798.6,0.00028219,3]
[387250189,1758664417074,-549.42,0.00028219,3]
[387250190,1758664417083,-404.28,0.00028219,3]
[387250191,1758664417092,-400.0,0.00028219,3]
[387250192,1758664417101,-1589.65,0.00028219,3]
[387250193,1758664417110,-559.17,0.00028219,3]
[387250194,1758664417131,-1587.3,0.00028219,3]
[387250195,1758664417140,-1163.2,0.00028219,3]
[387250196,1758664417150,-536.97,0.00028219,3]
[387250197,1758664417159,-400.0,0.00028219,2]
[387250198,1758664417168,-2080.14,0.00028219,3]
[387250199,1758664417178,-529.51,0.00028219,3]
[387250200,1758664417187,-931.36,0.00028219,3]
[387250201,1758664417196,-1619.96,0.00028219,3]
[387250202,1758664417206,-1000.0,0.00028219,3]
[387250203,1758664417215,-453.19,0.00028219,3]
[387250204,1758664417225,-948.64,0.00028219,3]
[387250205,1758664417234,-400.0,0.00028219,3]
[387250206,1758664417243,-13739.2,0.00028219,3]
[387250207,1758664417253,-1551.51,0.00028219,3]
[387250208,1758664417263,-1871.37,0.00028219,3]